[Event "Kerkinitida 2021"]
[Site "Yevpatoria"]
[Date "2021.10.25"]
[Round "7.7"]
[White "Grinivetskii, Mark"]
[Black "Cherunov, Svyatoslav"]
[Result "1/2-1/2"]
[ECO "B33"]
[WhiteElo "1350"]
[BlackElo "1240"]
[Annotator "NA RC"]
[PlyCount "130"]
[EventDate "2021.10.19"]
[EventType "swiss"]
[SourceTitle "playchess.com"]
[Source "ChessBase"]
[SourceQuality "1"]
[TimeControl "5400+30"]

1. e4 {[%emt 0:00:03]} c5 {[%emt 0:00:29]} 2. Nf3 {[%emt 0:00:02]} Nc6 {[%emt 0:00:06]} 3. d4 {[%emt 0:00:06]} cxd4 {[%emt 0:00:09]} 4. Nxd4 {[%emt 0:00:15]} e5 {[%emt 0:00:00]} 5. Nf3 {[%emt 0:00:11]} Nf6 {[%emt 0:00:24]} 6. Nc3 {[%emt 0:00:09]} Bc5 {[%emt 0:00:17]} 7. Bg5 {[%emt 0:00:05]} h6 {[%emt 0:00:12]} 8. Bh4 {[%emt 0:00:07]} g5 {[%emt 0:01:04]} 9. Bg3 {[%emt 0:00:14]} d6 {[%emt 0:00:15]} 10. Bc4 {[%emt 0:00:20]} Bg4 {[%emt 0:00:54]} 11. h3 {[%emt 0:00:17]} Be6 {[%emt 0:00:43]} 12. Bb3 {[%emt 0:00:33]} Bb4 {[%emt 0:01:01]} 13. Qd3 {[%emt 0:00:33]} Qb6 {[%emt 0:01:00]} 14. O-O-O {[%emt 0:01:17]} Bxc3 {[%emt 0:01:23]} 15. bxc3 {[%emt 0:01:03]} O-O-O {[%emt 0:00:35]} 16. Nd2 {[%emt 0:00:39]} d5 {[%emt 0:01:48]} 17. Qf3 {[%emt 0:00:59]} Nxe4 {[%emt 0:02:06]} 18. Nxe4 {[%emt 0:00:20]} dxe4 {[%emt 0:00:33]} 19. Qxe4 {[%emt 0:00:43]} Bxb3 {[%emt 0:00:59]} 20. cxb3 {[%emt 0:00:25]} Qc5 {[%emt 0:01:24]} 21. Kb2 {[%emt 0:00:25]} b5 {[%emt 0:02:03]} 22. Qf5+ {[%emt 0:00:48]} Kb8 {[%emt 0:01:46]} 23. Qxf7 {[%emt 0:01:13]} a5 {[%emt 0:02:11]} 24. Rhe1 {[%emt 0:01:56]} Rxd1 {[%emt 0:02:17]} 25. Rxd1 {[%emt 0:00:11]} b4 {[%emt 0:00:38]} 26. c4 {[%emt 0:01:23]} Rf8 {[%emt 0:01:16]} 27. Rd5 {[%emt 0:01:53]} Qd4+ {[%emt 0:02:24]} 28. Rxd4 {[%emt 0:00:25]} Rxf7 {[%emt 0:00:10]} 29. Rd6 {[%emt 0:00:27]} Kc7 {[%emt 0:01:24]} 30. Rxh6 {[%emt 0:00:14]} Kb6 {[%emt 0:00:37]} 31. f3 {[%emt 0:01:03]} Kc5 {[%emt 0:01:36]} 32. Bf2+ {[%emt 0:00:57]} Nd4 {[%emt 0:00:38]} 33. Ra6 {[%emt 0:00:26]} Rd7 {[%emt 0:01:55]} 34. Rxa5+ {[%emt 0:00:11]} Kc6 {[%emt 0:01:45]} 35. Rxe5 {[%emt 0:00:41]} Nxf3 {[%emt 0:00:29]} 36. Rc5+ {[%emt 0:01:19]} Kb7 {[%emt 0:01:17]} 37. Rb5+ {[%emt 0:00:23]} Ka6 {[%emt 0:01:11]} 38. gxf3 {[%emt 0:01:20]} Rd2+ {[%emt 0:00:14]} 39. Kb1 {[%emt 0:00:36]} Rxf2 {[%emt 0:00:16]} 40. Rxb4 {[%emt 0:00:11]} Rxf3 {[%emt 0:00:42]} 41. Rb5 {[%emt 0:00:21]} Rxh3 {[%emt 0:00:37]} 42. Rxg5 {[%emt 0:00:06]} Rh2 {[%emt 0:00:36]} 43. Rg3 {[%emt 0:00:16]} Ka5 {[%emt 0:00:38]} 44. Rc3 {[%emt 0:00:26]} Kb4 {[%emt 0:00:44]} 45. Rc2 {[%emt 0:00:10]} Rh1+ {[%emt 0:00:57]} 46. Kb2 {[%emt 0:00:05]} Rh3 {[%emt 0:01:28]} 47. c5 {[%emt 0:00:08]} Rh7 {[%emt 0:00:34]} 48. c6 {[%emt 0:00:07]} Rc7 {[%emt 0:00:16]} 49. Rc4+ {[%emt 0:00:29]} Ka5 {[%emt 0:00:28]} 50. a4 {[%emt 0:00:13]} Kb6 {[%emt 0:01:37]} 51. Ka3 {[%emt 0:00:11]} Ka5 {[%emt 0:01:53]} 52. b4+ {[%emt 0:00:15]} Kb6 {[%emt 0:01:05]} 53. a5+ {[%emt 0:00:13]} Kb5 {[%emt 0:01:49]} 54. Rc5+ {[%emt 0:00:07]} Ka6 {[%emt 0:00:30]} 55. Ka4 {[%emt 0:00:11]} Rc8 {[%emt 0:01:41]} 56. b5+ {[%emt 0:00:15]} Ka7 {[%emt 0:00:09]} 57. b6+ {[%emt 0:00:15]} Ka6 {[%emt 0:02:19]} 58. b7 {[%emt 0:00:10]} Rf8 {[%emt 0:01:19]} 59. Rc4 {[%emt 0:00:36]} Ka7 {[%emt 0:04:14]} 60. Kb5 {[%emt 0:00:34]} Kb8 {[%emt 0:01:11]} 61. Kb6 {[%emt 0:00:42]} Rf7 {[%emt 0:01:11]} 62. Rd4 {[%emt 0:01:01]} Rxb7+ {[%emt 0:01:20]} 63. Ka6 {[%emt 0:00:30]} Rb3 {[%emt 0:01:29]} 64. Rc4 {[%emt 0:00:38]} Ka8 {[%emt 0:02:12]} 65. c7 {[%emt 0:00:29]} Rb6+ {[%emt 0:00:10]} 1/2-1/2

[Event "Kerkinitida 2021"]
[Site "Yevpatoria"]
[Date "2021.10.26"]
[Round "8.6"]
[White "Tihonov, Gennady"]
[Black "Samson, Anna Rao. T"]
[Result "1-0"]
[ECO "C68"]
[WhiteElo "1827"]
[BlackElo "1573"]
[Annotator "NA RC"]
[PlyCount "55"]
[EventDate "2021.10.19"]
[EventType "swiss"]
[SourceTitle "playchess.com"]
[Source "ChessBase"]
[SourceQuality "1"]
[TimeControl "5400+30"]

1. e4 {[%emt 0:02:24]} e5 {[%emt 0:00:25]} 2. Nf3 {[%emt 0:00:08]} Nc6 {[%emt 0:00:06]} 3. Bb5 {[%emt 0:00:28]} a6 {[%emt 0:00:18]} 4. Bxc6 {[%emt 0:00:06]} bxc6 {[%emt 0:00:06]} 5. d3 {[%emt 0:02:19]} d6 {[%emt 0:03:05]} 6. Nbd2 {[%emt 0:01:16]} Bg4 {[%emt 0:00:14]} 7. h3 {[%emt 0:00:21]} Bh5 {[%emt 0:00:30]} 8. Nf1 {[%emt 0:00:38]} Qf6 {[%emt 0:03:27]} 9. g4 {[%emt 0:02:02]} Bg6 {[%emt 0:01:36]} 10. Ng3 {[%emt 0:01:26]} d5 {[%emt 0:01:16]} 11. O-O {[%emt 0:01:15]} Rd8 {[%emt 0:00:30]} 12. Bg5 {[%emt 0:00:44]} Qe6 {[%emt 0:02:01]} 13. Bxd8 {[%emt 0:00:09]} Kxd8 {[%emt 0:00:10]} 14. c4 {[%emt 0:01:36]} dxe4 {[%emt 0:00:21]} 15. dxe4+ {[%emt 0:00:15]} Bd6 {[%emt 0:00:08]} 16. c5 {[%emt 0:00:08]} Bxe4 {[%emt 0:00:19]} 17. Nxe4 {[%emt 0:00:13]} Kd7 {[%emt 0:01:54]} 18. cxd6 {[%emt 0:00:24]} cxd6 {[%emt 0:00:06]} 19. Nc5+ {[%emt 0:00:07]} Ke7 {[%emt 0:00:12]} 20. Nxe6 {[%emt 0:00:05]} fxe6 {[%emt 0:00:13]} 21. Qd3 {[%emt 0:01:25]} Nf6 {[%emt 0:00:19]} 22. Rfd1 {[%emt 0:00:27]} Rd8 {[%emt 0:00:10]} 23. Nxe5 {[%emt 0:00:13]} a5 {[%emt 0:00:33]} 24. Nxc6+ {[%emt 0:00:09]} Kf7 {[%emt 0:00:14]} 25. Nxd8+ {[%emt 0:00:10]} Ke7 {[%emt 0:00:00]} 26. Qxd6+ {[%emt 0:00:18]} Ke8 {[%emt 0:00:17]} 27. Qxe6+ {[%emt 0:00:07]} Kf8 {[%emt 0:00:10]} 28. Qf7# {[%emt 0:00:02]} 1-0

[Event "Kerkinitida 2021"]
[Site "Yevpatoria"]
[Date "2021.10.26"]
[Round "8.7"]
[White "Cherunov, Svyatoslav"]
[Black "Iljin, Viktor"]
[Result "1/2-1/2"]
[ECO "B06"]
[WhiteElo "1240"]
[BlackElo "1066"]
[Annotator "NA RC"]
[PlyCount "71"]
[EventDate "2021.10.19"]
[EventType "swiss"]
[SourceTitle "playchess.com"]
[Source "ChessBase"]
[SourceQuality "1"]
[TimeControl "5400+30"]

1. e4 {[%emt 0:00:02]} d6 {[%emt 0:01:02]} 2. d4 {[%emt 0:00:10]} Nd7 {[%emt 0:00:03]} 3. Nf3 {[%emt 0:00:11]} g6 {[%emt 0:00:31]} 4. Nc3 {[%emt 0:00:28]} Bg7 {[%emt 0:00:22]} 5. Bc4 {[%emt 0:00:47]} Nb6 {[%emt 0:02:05]} 6. Bb3 {[%emt 0:00:53]} Nf6 {[%emt 0:00:10]} 7. O-O {[%emt 0:00:14]} O-O {[%emt 0:00:04]} 8. h3 {[%emt 0:00:07]} Nbd7 {[%emt 0:00:15]} 9. Re1 {[%emt 0:01:43]} c5 {[%emt 0:01:05]} 10. e5 {[%emt 0:00:50]} dxe5 {[%emt 0:00:32]} 11. dxe5 {[%emt 0:00:09]} Ne8 {[%emt 0:00:07]} 12. e6 {[%emt 0:00:42]} fxe6 {[%emt 0:00:24]} 13. Bxe6+ {[%emt 0:00:11]} Kh8 {[%emt 0:00:04]} 14. Ne5 {[%emt 0:01:24]} Bxe5 {[%emt 0:00:48]} 15. Rxe5 {[%emt 0:00:18]} Ng7 {[%emt 0:00:14]} 16. Bxd7 {[%emt 0:00:30]} Bxd7 {[%emt 0:00:19]} 17. Rd5 {[%emt 0:01:00]} Qb6 {[%emt 0:01:10]} 18. Rxd7 {[%emt 0:00:41]} c4 {[%emt 0:00:14]} 19. Be3 {[%emt 0:00:16]} Qxb2 {[%emt 0:00:25]} 20. Bd4 {[%emt 0:00:57]} Rad8 {[%emt 0:00:54]} 21. Rb1 {[%emt 0:01:06]} Qa3 {[%emt 0:01:01]} 22. Bxg7+ {[%emt 0:00:36]} Kxg7 {[%emt 0:00:06]} 23. Qd4+ {[%emt 0:00:13]} Kf7 {[%emt 0:00:34]} 24. Rxd8 {[%emt 0:00:39]} Rxd8 {[%emt 0:00:05]} 25. Qxd8 {[%emt 0:00:17]} Qxc3 {[%emt 0:00:03]} 26. Qd5+ {[%emt 0:01:07]} e6 {[%emt 0:00:21]} 27. Qf3+ {[%emt 0:00:10]} Qxf3 {[%emt 0:00:43]} 28. gxf3 {[%emt 0:00:05]} Kf6 {[%emt 0:00:02]} 29. Rxb7 {[%emt 0:00:13]} Ke5 {[%emt 0:00:03]} 30. a4 {[%emt 0:00:14]} Kd4 {[%emt 0:00:07]} 31. a5 {[%emt 0:00:07]} Kc3 {[%emt 0:00:08]} 32. Rxa7 {[%emt 0:00:13]} Kxc2 {[%emt 0:00:04]} 33. a6 {[%emt 0:00:19]} c3 {[%emt 0:00:04]} 34. Rc7 {[%emt 0:00:08]} Kb2 {[%emt 0:00:03]} 35. a7 {[%emt 0:00:12]} c2 {[%emt 0:00:06]} 36. a8=Q {[%emt 0:00:10]} 1/2-1/2

[Event "Kerkinitida 2021"]
[Site "Yevpatoria"]
[Date "2021.10.27"]
[Round "9.1"]
[White "Triapishko, Alexandr"]
[Black "Tihonov, Gennady"]
[Result "1-0"]
[ECO "A28"]
[WhiteElo "2506"]
[BlackElo "1827"]
[Annotator "ChessBase"]
[PlyCount "149"]
[EventDate "2021.10.19"]
[EventType "swiss"]
[SourceTitle "playchess.com"]
[Source "ChessBase"]
[SourceQuality "1"]
[TimeControl "5400+30"]

1. c4 {[%emt 0:02:19]} e5 {[%emt 0:00:10]} 2. Nc3 {[%emt 0:09:28]} Nf6 {[%emt 0:00:34]} 3. Nf3 {[%emt 0:01:55]} Nc6 {[%emt 0:00:11]} 4. e4 {[%emt 0:03:25]} Bb4 {[%emt 0:01:39]} 5. d3 {[%emt 0:05:26]} h6 {[%emt 0:02:59]} 6. g3 {[%emt 0:04:52]} Qe7 {[%emt 0:03:40]} 7. Bg2 {[%emt 0:03:09]} Nd4 {[%emt 0:05:55]} 8. O-O {[%emt 0:21:37]} Nxf3+ {[%emt 0:02:38]} 9. Bxf3 {[%emt 0:02:40]} c6 {[%emt 0:05:04]} 10. Na4 {[%emt 0:14:54]} d6 {[%emt 0:06:10]} 11. a3 {[%emt 0:02:00]} Ba5 {[%emt 0:00:43]} 12. b4 {[%emt 0:00:35]} Bc7 {[%emt 0:00:33]} 13. Bg2 {[%emt 0:02:43]} Bd7 {[%emt 0:04:56]} 14. Bb2 {[%emt 0:04:44]} Rd8 {[%emt 0:09:53]} 15. d4 {[%emt 0:03:53]} Bc8 {[%emt 0:04:43]} 16. Re1 {[%emt 0:01:20]} Ng4 {[%emt 0:09:41]} 17. Qe2 {[%emt 0:02:44]} O-O {[%emt 0:02:47]} 18. Rad1 {[%emt 0:01:54]} Rfe8 {[%emt 0:03:08]} 19. h3 {[%emt 0:01:58]} Nf6 {[%emt 0:00:03]} 20. Qe3 {[%emt 0:01:01]} Bb8 {[%emt 0:02:08]} 21. Re2 {[%emt 0:04:17]} Nh7 {[%emt 0:01:36]} 22. Red2 {[%emt 0:01:47]} Ng5 {[%emt 0:01:52]} 23. h4 {[%emt 0:00:12]} Ne6 {[%emt 0:00:23]} 24. d5 {[%emt 0:00:51]} Nf8 {[%emt 0:01:39]} 25. dxc6 {[%emt 0:01:17]} bxc6 {[%emt 0:00:10]} 26. c5 {[%emt 0:00:36]} Ne6 {[%emt 0:02:55]} 27. cxd6 {[%emt 0:00:48]} Rxd6 {[%emt 0:01:47]} 28. Rxd6 {[%emt 0:00:31]} Bxd6 {[%emt 0:00:06]} 29. Rc1 {[%emt 0:00:08]} Qb7 {[%emt 0:03:46]} 30. Bf1 {[%emt 0:01:43]} Rd8 {[%emt 0:01:33]} 31. Ba1 {[%emt 0:00:31]} Qa8 {[%emt 0:04:40]} 32. Bc4 {[%emt 0:00:35]} Qb7 {[%emt 0:03:39]} 33. Rd1 {[%emt 0:00:33]} Qe7 {[%emt 0:01:01]} 34. Rd2 {[%emt 0:00:28]} Bb8 {[%emt 0:00:47]} 35. Kg2 {[%emt 0:00:31]} Rxd2 {[%emt 0:01:03]} 36. Qxd2 {[%emt 0:00:02]} Qd6 {[%emt 0:01:27]} 37. Bc3 {[%emt 0:00:57]} Qxd2 {[%emt 0:00:34]} 38. Bxd2 {[%emt 0:00:02]} Kf8 {[%emt 0:01:06]} 39. Be3 {[%emt 0:00:14]} Ke7 {[%emt 0:00:36]} 40. Kf3 {[%emt 0:00:58]} Nd4+ {[%emt 0:00:27]} 41. Bxd4 {[%emt 0:00:39]} exd4 {[%emt 0:00:03]} 42. Ke2 {[%emt 0:00:32]} f5 {[%emt 0:00:34]} 43. Kd3 {[%emt 0:00:39]} f4 {[%emt 0:01:59]} 44. gxf4 {[%emt 0:00:08]} Bxf4 {[%emt 0:00:18]} 45. Kxd4 {[%emt 0:00:28]} Kd6 {[%emt 0:00:40]} 46. Nc5 {[%emt 0:00:35]} Be5+ {[%emt 0:01:02]} 47. Ke3 {[%emt 0:00:04]} Bf6 {[%emt 0:01:20]} 48. h5 {[%emt 0:00:22]} Bg4 {[%emt 0:00:21]} 49. Be2 {[%emt 0:01:22]} Bg5+ {[%emt 0:03:22]} 50. Kd3 {[%emt 0:00:06]} Bc8 {[%emt 0:00:49]} 51. Kd4 {[%emt 0:00:37]} Bf6+ {[%emt 0:00:26]} 52. Ke3 {[%emt 0:00:48]} a5 {[%emt 0:00:35]} 53. Bc4 {[%emt 0:00:30]} axb4 {[%emt 0:00:20]} 54. axb4 {[%emt 0:00:02]} Bg4 {[%emt 0:00:37]} 55. f4 {[%emt 0:00:55]} Bc3 {[%emt 0:00:40]} 56. Be2 {[%emt 0:00:19]} Bc8 {[%emt 0:01:07]} 57. Nd3 {[%emt 0:00:43]} Ba6 {[%emt 0:01:09]} 58. Nf2 {[%emt 0:00:10]} Bxe2 {[%emt 0:00:11]} 59. Kxe2 {[%emt 0:00:04]} Bxb4 {[%emt 0:00:13]} 60. Nd3 {[%emt 0:00:05]} Ba3 {[%emt 0:00:49]} 61. Kf3 {[%emt 0:00:59]} c5 {[%emt 0:00:42]} 62. Ne5 {[%emt 0:00:05]} Ke6 {[%emt 0:00:32]} 63. Nc4 {[%emt 0:00:17]} Bc1 {[%emt 0:01:26]} 64. Kg4 {[%emt 0:01:12]} Kf6 {[%emt 0:00:48]} 65. f5 {[%emt 0:00:51]} Bg5 {[%emt 0:00:46]} 66. e5+ {[%emt 0:00:25]} Kf7 {[%emt 0:00:44]} 67. Kf3 {[%emt 0:00:12]} Ke7 {[%emt 0:00:59]} 68. Ke4 {[%emt 0:00:06]} Bh4 {[%emt 0:00:29]} 69. Kd5 {[%emt 0:00:16]} Bf2 {[%emt 0:00:12]} 70. Nd6 {[%emt 0:00:20]} Bd4 {[%emt 0:02:10]} 71. f6+ {[%emt 0:01:47]} gxf6 {[%emt 0:00:35]} 72. Nf5+ {[%emt 0:00:03]} Kf8 {[%emt 0:00:30]} 73. e6 {[%emt 0:00:02]} Be5 {[%emt 0:00:39]} 74. Nxh6 {[%emt 0:00:30]} Bf4 {[%emt 0:00:37]} 75. Nf5 {[%emt 0:00:10]} 1-0

[Event "Kerkinitida 2021"]
[Site "Yevpatoria"]
[Date "2021.10.27"]
[Round "9.4"]
[White "Baranov, Jury"]
[Black "Tomilova, Elena"]
[Result "1-0"]
[ECO "E46"]
[WhiteElo "2147"]
[BlackElo "2256"]
[Annotator "NA"]
[PlyCount "164"]
[EventDate "2021.10.19"]
[EventType "swiss"]
[SourceTitle "playchess.com"]
[Source "ChessBase"]
[SourceQuality "1"]
[TimeControl "5400+30"]

1. d4 {[%emt 0:00:05]} Nf6 {[%emt 0:00:08]} 2. c4 {[%emt 0:00:23]} e6 {[%emt 0:00:09]} 3. Nc3 {[%emt 0:00:10]} Bb4 {[%emt 0:00:07]} 4. e3 {[%emt 0:00:07]} O-O {[%emt 0:00:25]} 5. Bd2 {[%emt 0:00:08]} c5 {[%emt 0:00:40]} 6. a3 {[%emt 0:00:38]} Bxc3 {[%emt 0:00:13]} 7. Bxc3 {[%emt 0:00:11]} Ne4 {[%emt 0:00:24]} 8. Ne2 {[%emt 0:01:36]} b6 {[%emt 0:03:51]} 9. f3 {[%emt 0:02:02]} Nxc3 {[%emt 0:01:44]} 10. Nxc3 {[%emt 0:00:32]} Bb7 {[%emt 0:00:48]} 11. d5 {[%emt 0:01:54]} exd5 {[%emt 0:00:32]} 12. cxd5 {[%emt 0:00:53]} d6 {[%emt 0:00:53]} 13. Bd3 {[%emt 0:06:37]} c4 {[%emt 0:07:11]} 14. Bc2 {[%emt 0:01:19]} Nd7 {[%emt 0:13:03]} 15. O-O {[%emt 0:05:51]} Re8 {[%emt 0:06:15]} 16. Qd4 {[%emt 0:05:54]} Nc5 {[%emt 0:07:51]} 17. Rae1 {[%emt 0:01:50]} Ba6 {[%emt 0:00:58]} 18. Rf2 {[%emt 0:10:41]} Rc8 {[%emt 0:01:33]} 19. Qf4 {[%emt 0:15:58]} Nd3 {[%emt 0:03:49]} 20. Bxd3 {[%emt 0:00:05]} cxd3 {[%emt 0:00:08]} 21. Rd2 {[%emt 0:06:17]} Bc4 {[%emt 0:10:32]} 22. Qd4 {[%emt 0:06:57]} Qc7 {[%emt 0:05:06]} 23. e4 {[%emt 0:04:52]} Qe7 {[%emt 0:06:17]} 24. Nd1 {[%emt 0:05:08]} Qg5 {[%emt 0:09:54]} 25. Ne3 {[%emt 0:02:00]} b5 {[%emt 0:09:23]} 26. Rf2 {[%emt 0:02:52]} Qe5 {[%emt 0:05:28]} 27. Qxe5 {[%emt 0:00:39]} Rxe5 {[%emt 0:02:34]} 28. Rc1 {[%emt 0:01:12]} Ree8 {[%emt 0:00:19]} 29. Nf5 {[%emt 0:00:59]} Rcd8 {[%emt 0:00:48]} 30. Nd4 {[%emt 0:01:01]} Rc8 {[%emt 0:01:08]} 31. Nf5 {[%emt 0:05:04]} Rcd8 {[%emt 0:00:10]} 32. Rc3 {[%emt 0:00:55]} g6 {[%emt 0:00:54]} 33. b3 {[%emt 0:02:04]} gxf5 {[%emt 0:00:59]} 34. bxc4 {[%emt 0:00:02]} Rc8 {[%emt 0:00:42]} 35. Rxd3 {[%emt 0:00:41]} bxc4 {[%emt 0:00:09]} 36. Rd4 {[%emt 0:00:13]} fxe4 {[%emt 0:00:40]} 37. fxe4 {[%emt 0:00:31]} Rc5 {[%emt 0:00:33]} 38. Rc2 {[%emt 0:00:53]} Rec8 {[%emt 0:00:08]} 39. Rc3 {[%emt 0:00:12]} Kg7 {[%emt 0:00:19]} 40. Kf2 {[%emt 0:00:02]} Kf6 {[%emt 0:00:12]} 41. Rf3+ {[%emt 0:00:45]} Ke7 {[%emt 0:00:19]} 42. Rd2 {[%emt 0:00:34]} c3 {[%emt 0:00:41]} 43. Rc2 {[%emt 0:00:01]} Rc4 {[%emt 0:00:32]} 44. Kg3 {[%emt 0:06:20]} a5 {[%emt 0:00:51]} 45. Kf4 {[%emt 0:00:28]} h5 {[%emt 0:00:43]} 46. Kf5 {[%emt 0:00:52]} R8c5 {[%emt 0:01:04]} 47. Rh3 {[%emt 0:01:36]} Rc8 {[%emt 0:00:38]} 48. Rd3 {[%emt 0:01:12]} R8c7 {[%emt 0:00:47]} 49. g3 {[%emt 0:00:11]} Rc8 {[%emt 0:00:31]} 50. Re3 {[%emt 0:01:00]} f6 {[%emt 0:00:33]} 51. h3 {[%emt 0:01:21]} Kf7 {[%emt 0:00:35]} 52. Re1 {[%emt 0:01:03]} Rg8 {[%emt 0:00:35]} 53. Re3 {[%emt 0:00:43]} Rgc8 {[%emt 0:00:41]} 54. g4 {[%emt 0:00:12]} h4 {[%emt 0:00:22]} 55. Re1 {[%emt 0:00:39]} Rb8 {[%emt 0:00:33]} 56. Rec1 {[%emt 0:00:49]} Rb3 {[%emt 0:00:33]} 57. a4 {[%emt 0:00:09]} Rb2 {[%emt 0:00:35]} 58. g5 {[%emt 0:01:06]} Rxc2 {[%emt 0:01:05]} 59. Rxc2 {[%emt 0:00:32]} fxg5 {[%emt 0:00:11]} 60. Kxg5 {[%emt 0:00:07]} Ke7 {[%emt 0:00:35]} 61. Kf5 {[%emt 0:00:24]} Rc5 {[%emt 0:00:20]} 62. Kg5 {[%emt 0:00:37]} Rc4 {[%emt 0:00:29]} 63. Kf5 {[%emt 0:00:19]} Kf7 {[%emt 0:00:23]} 64. Kg5 {[%emt 0:00:13]} Ke8 {[%emt 0:00:54]} 65. Kf5 {[%emt 0:00:48]} Ke7 {[%emt 0:00:32]} 66. Kg5 {[%emt 0:00:06]} Rxe4 {[%emt 0:00:06]} 67. Rxc3 {[%emt 0:00:11]} Rxa4 {[%emt 0:00:04]} 68. Rc7+ {[%emt 0:00:17]} Kd8 {[%emt 0:00:06]} 69. Ra7 {[%emt 0:00:23]} Kc8 {[%emt 0:00:23]} 70. Kf6 {[%emt 0:00:39]} Kb8 {[%emt 0:00:48]} 71. Rd7 {[%emt 0:00:05]} Ra3 {[%emt 0:00:21]} 72. Ke7 {[%emt 0:00:41]} Rxh3 {[%emt 0:00:36]} 73. Rxd6 {[%emt 0:00:06]} Rd3 {[%emt 0:00:21]} 74. Rd8+ {[%emt 0:00:34]} Kb7 {[%emt 0:00:08]} 75. d6 {[%emt 0:00:28]} Re3+ {[%emt 0:00:27]} 76. Kd7 {[%emt 0:00:35]} h3 {[%emt 0:01:19]} 77. Rh8 {[%emt 0:00:15]} a4 {[%emt 0:00:37]} 78. Rh4 {[%emt 0:00:39]} a3 {[%emt 0:00:29]} 79. Rb4+ {[%emt 0:00:23]} Ka6 {[%emt 0:00:06]} 80. Kc6 {[%emt 0:00:22]} Rc3+ {[%emt 0:00:17]} 81. Kd5 {[%emt 0:00:12]} h2 {[%emt 0:00:49]} 82. Rh4 {[%emt 0:02:03]} a2 {[%emt 0:00:20]} 1-0

[Event "Kerkinitida 2021"]
[Site "Yevpatoria"]
[Date "2021.10.27"]
[Round "9.7"]
[White "Polukhin, Sergey"]
[Black "Iljin, Viktor"]
[Result "1-0"]
[ECO "B53"]
[WhiteElo "1410"]
[BlackElo "1066"]
[Annotator "NA RC"]
[PlyCount "37"]
[EventDate "2021.10.19"]
[EventType "swiss"]
[SourceTitle "playchess.com"]
[Source "ChessBase"]
[SourceQuality "1"]
[TimeControl "5400+30"]

1. e4 {[%emt 0:00:02]} d6 {[%emt 0:00:06]} 2. d4 {[%emt 0:00:09]} Nd7 {[%emt 0:00:04]} 3. Nf3 {[%emt 0:00:09]} c5 {[%emt 0:00:03]} 4. Be3 {[%emt 0:09:04]} b6 {[%emt 0:04:12]} 5. Bc4 {[%emt 0:06:04]} h6 {[%emt 0:03:46]} 6. Nc3 {[%emt 0:20:50]} g6 {[%emt 0:01:37]} 7. e5 {[%emt 0:08:27]} cxd4 {[%emt 0:01:23]} 8. Bxd4 {[%emt 0:02:07]} dxe5 {[%emt 0:03:05]} 9. Nxe5 {[%emt 0:19:03]} Nxe5 {[%emt 0:01:50]} 10. Bxe5 {[%emt 0:00:43]} Qxd1+ {[%emt 0:00:08]} 11. Rxd1 {[%emt 0:00:02]} f6 {[%emt 0:00:17]} 12. Nb5 {[%emt 0:12:22]} e6 {[%emt 0:01:40]} 13. Nc7+ {[%emt 0:01:33]} Ke7 {[%emt 0:00:26]} 14. Bd6+ {[%emt 0:01:18]} Kd7 {[%emt 0:00:15]} 15. Bb5+ {[%emt 0:01:48]} Kd8 {[%emt 0:01:01]} 16. Nxa8 {[%emt 0:00:37]} Bxd6 {[%emt 0:00:21]} 17. Rxd6+ {[%emt 0:00:00]} Ke7 {[%emt 0:00:01]} 18. Rd1 {[%emt 0:00:22]} Bb7 {[%emt 0:00:05]} 19. Rd7+ {[%emt 0:00:09]} 1-0